[Event "Titled Tuesday Blitz October 5 2021"]
[White "Turayev, Shahruh"]
[Black "Babazada, Khazar"]
[WhiteFideId "14003856"]
[BlackFideId "13413554"]
[WhiteElo "2516"]
[BlackElo "2302"]
[Result "0-1"]
[Round "02"]
[TimeControl "180+1"]
[Date "2021.10.05"]
[WhiteClock "0:00:10"]
[BlackClock "0:01:12"]

1. e4 {[%clk 0:02:59]}  e5 {[%clk 0:03:00]} 2. Nc3 {[%clk 0:02:59]}  Nc6 {[%clk 0:02:59]} 3. Bc4 {[%clk 0:03:00]}  Bc5 {[%clk 0:02:59]} 4. Qg4 {[%clk 0:02:59]}  Kf8 {[%clk 0:02:53]} 5. Qf3 {[%clk 0:02:59]}  Nf6 {[%clk 0:02:51]} 6. Nge2 {[%clk 0:02:58]}  d6 {[%clk 0:02:51]} 7. h3 {[%clk 0:02:58]}  h5 {[%clk 0:02:51]} 8. d3 {[%clk 0:02:55]}  Nd4 {[%clk 0:02:46]} 9. Nxd4 {[%clk 0:02:53]}  exd4 {[%clk 0:02:47]} 10. Nd5 {[%clk 0:02:42]}  Nxd5 {[%clk 0:02:46]} 11. Bxd5 {[%clk 0:02:43]}  Qe7 {[%clk 0:02:42]} 12. Bg5 {[%clk 0:02:40]}  f6 {[%clk 0:02:40]} 13. O-O-O {[%clk 0:02:21]}  c6 {[%clk 0:02:40]} 14. Bb3 {[%clk 0:02:20]}  a5 {[%clk 0:02:39]} 15. a3 {[%clk 0:02:10]}  a4 {[%clk 0:02:31]} 16. Ba2 {[%clk 0:02:09]}  Bd7 {[%clk 0:02:32]} 17. Bd2 {[%clk 0:02:05]}  b5 {[%clk 0:02:32]} 18. g4 {[%clk 0:02:05]}  Be8 {[%clk 0:02:27]} 19. g5 {[%clk 0:01:59]}  Bf7 {[%clk 0:02:27]} 20. gxf6 {[%clk 0:01:55]}  Qxf6 {[%clk 0:02:25]} 21. Qxf6 {[%clk 0:01:54]}  gxf6 {[%clk 0:02:26]} 22. Bxf7 {[%clk 0:01:49]}  Kxf7 {[%clk 0:02:27]} 23. Rhg1 {[%clk 0:01:44]}  Rag8 {[%clk 0:02:27]} 24. Bf4 {[%clk 0:01:33]}  b4 {[%clk 0:02:25]} 25. axb4 {[%clk 0:01:31]}  Bxb4 {[%clk 0:02:25]} 26. Kb1 {[%clk 0:01:17]}  a3 {[%clk 0:02:22]} 27. c3 {[%clk 0:00:41]}  dxc3 {[%clk 0:02:09]} 28. bxc3 {[%clk 0:00:42]}  Bxc3 {[%clk 0:01:55]} 29. Ka2 {[%clk 0:00:37]}  Rb8 {[%clk 0:01:46]} 30. Rb1 {[%clk 0:00:36]}  Rb2+ {[%clk 0:01:46]} 31. Rxb2 {[%clk 0:00:34]}  axb2 {[%clk 0:01:47]} 32. Kb3 {[%clk 0:00:30]}  Ra8 {[%clk 0:01:36]} 33. Rb1 {[%clk 0:00:25]}  Ra1 {[%clk 0:01:36]} 34. Kc2 {[%clk 0:00:25]}  Ke6 {[%clk 0:01:36]} 35. Be3 {[%clk 0:00:21]}  d5 {[%clk 0:01:35]} 36. f4 {[%clk 0:00:20]}  dxe4 {[%clk 0:01:29]} 37. dxe4 {[%clk 0:00:21]}  f5 {[%clk 0:01:29]} 38. e5 {[%clk 0:00:21]}  Kd5 {[%clk 0:01:28]} 39. Bb6 {[%clk 0:00:15]}  c5 {[%clk 0:01:25]} 40. Bc7 {[%clk 0:00:11]}  Bd4 {[%clk 0:01:23]} 41. Bb6 {[%clk 0:00:11]}  Ra6 {[%clk 0:01:17]} 42. Bd8 {[%clk 0:00:10]}  c4 {[%clk 0:01:17]} 43. Bg5 {[%clk 0:00:09]}  c3 {[%clk 0:01:17]} 44. Rd1 {[%clk 0:00:09]}  Kc4 {[%clk 0:01:14]} 45. Bf6 {[%clk 0:00:09]}  Ra1 {[%clk 0:01:11]} 46. Rb1 {[%clk 0:00:09]}  Rxb1 {[%clk 0:01:12]} 47. Kxb1 {[%clk 0:00:10]}  Kb3 {[%clk 0:01:12]} 0-1


[Site "https://www.chess.com"]

[Event "Titled Tuesday Blitz October 5 2021"]
[White "Viani Antonio Dcunha"]
[Black "Demidov, Mikhail"]
[WhiteFideId "5027330"]
[BlackFideId "4197143"]
[WhiteElo "2366"]
[BlackElo "2527"]
[Result "1-0"]
[Round "02"]
[TimeControl "180+1"]
[Date "2021.10.05"]
[WhiteClock "0:00:31"]
[BlackClock "0:00:22"]

1. e4 {[%clk 0:03:00]}  Nf6 {[%clk 0:02:58]} 2. e5 {[%clk 0:02:59]}  Nd5 {[%clk 0:02:58]} 3. d4 {[%clk 0:02:59]}  d6 {[%clk 0:02:58]} 4. Nf3 {[%clk 0:02:59]}  Nb6 {[%clk 0:02:58]} 5. h3 {[%clk 0:02:48]}  g6 {[%clk 0:02:56]} 6. Bd3 {[%clk 0:02:43]}  Bg7 {[%clk 0:02:55]} 7. O-O {[%clk 0:02:42]}  O-O {[%clk 0:02:55]} 8. Qe2 {[%clk 0:02:34]}  Nc6 {[%clk 0:02:52]} 9. Nc3 {[%clk 0:02:24]}  Nb4 {[%clk 0:02:44]} 10. Bf4 {[%clk 0:02:13]}  Nxd3 {[%clk 0:02:41]} 11. Qxd3 {[%clk 0:02:14]}  dxe5 {[%clk 0:02:40]} 12. Bxe5 {[%clk 0:02:13]}  Bf5 {[%clk 0:02:37]} 13. Qe2 {[%clk 0:02:13]}  c6 {[%clk 0:02:33]} 14. Bxg7 {[%clk 0:02:10]}  Kxg7 {[%clk 0:02:34]} 15. Rad1 {[%clk 0:02:09]}  Nd5 {[%clk 0:02:32]} 16. Ne4 {[%clk 0:02:04]}  Bxe4 {[%clk 0:02:23]} 17. Qxe4 {[%clk 0:02:04]}  Nf6 {[%clk 0:02:24]} 18. Qe5 {[%clk 0:02:04]}  Qd6 {[%clk 0:02:22]} 19. Rfe1 {[%clk 0:02:02]}  Rfe8 {[%clk 0:02:22]} 20. c3 {[%clk 0:02:01]}  Rad8 {[%clk 0:02:21]} 21. g3 {[%clk 0:01:56]}  Qxe5 {[%clk 0:02:19]} 22. Nxe5 {[%clk 0:01:57]}  Nd5 {[%clk 0:02:19]} 23. Kg2 {[%clk 0:01:55]}  Nb6 {[%clk 0:02:17]} 24. Re2 {[%clk 0:01:53]}  e6 {[%clk 0:02:07]} 25. b3 {[%clk 0:01:50]}  Nd5 {[%clk 0:02:03]} 26. Rc1 {[%clk 0:01:46]}  Ne7 {[%clk 0:01:59]} 27. Nd3 {[%clk 0:01:45]}  Nf5 {[%clk 0:01:58]} 28. Nc5 {[%clk 0:01:45]}  Re7 {[%clk 0:01:58]} 29. a4 {[%clk 0:01:44]}  h5 {[%clk 0:01:56]} 30. a5 {[%clk 0:01:43]}  b6 {[%clk 0:01:56]} 31. Ne4 {[%clk 0:01:42]}  e5 {[%clk 0:01:47]} 32. axb6 {[%clk 0:01:38]}  exd4 {[%clk 0:01:40]} 33. bxa7 {[%clk 0:01:33]}  Rxa7 {[%clk 0:01:35]} 34. cxd4 {[%clk 0:01:29]}  Nxd4 {[%clk 0:01:35]} 35. Rd2 {[%clk 0:01:28]}  Re7 {[%clk 0:01:23]} 36. Nc5 {[%clk 0:01:25]}  Rd5 {[%clk 0:01:19]} 37. b4 {[%clk 0:01:22]}  Nb5 {[%clk 0:01:13]} 38. Rcd1 {[%clk 0:01:16]}  Rde5 {[%clk 0:01:01]} 39. Rd7 {[%clk 0:01:13]}  Re2 {[%clk 0:00:43]} 40. Kf3 {[%clk 0:01:08]}  Rxd7 {[%clk 0:00:40]} 41. Rxd7 {[%clk 0:01:09]}  Rb2 {[%clk 0:00:40]} 42. Ne6+ {[%clk 0:01:03]}  Kf6 {[%clk 0:00:34]} 43. Nd8 {[%clk 0:01:03]}  Rb3+ {[%clk 0:00:34]} 44. Kg2 {[%clk 0:01:02]}  Rxb4 {[%clk 0:00:31]} 45. Rxf7+ {[%clk 0:01:01]}  Kg5 {[%clk 0:00:27]} 46. h4+ {[%clk 0:00:48]}  Kh6 {[%clk 0:00:26]} 47. Nxc6 {[%clk 0:00:48]}  Re4 {[%clk 0:00:23]} 48. Ne7 {[%clk 0:00:45]}  g5 {[%clk 0:00:22]} 49. hxg5+ {[%clk 0:00:32]}  Kxg5 {[%clk 0:00:22]} 50. Rf5+ {[%clk 0:00:31]}  Kg4 {[%clk 0:00:22]} 51. f3# {[%clk 0:00:31]} 1-0


[Site "https://www.chess.com"]

[Event "Titled Tuesday Blitz October 5 2021"]
[White "Yoo, Christopher Woojin"]
[Black "Martinovici, Ilia"]
[WhiteFideId "30909694"]
[BlackFideId "13907034"]
[WhiteElo "2105"]
[BlackElo "2303"]
[Result "1-0"]
[Round "02"]
[TimeControl "180+1"]
[Date "2021.10.05"]
[WhiteClock "0:00:31"]
[BlackClock "0:00:05"]

1. d4 {[%clk 0:03:00]}  d5 {[%clk 0:02:58]} 2. c4 {[%clk 0:02:59]}  e6 {[%clk 0:02:58]} 3. Nc3 {[%clk 0:02:59]}  a6 {[%clk 0:02:58]} 4. cxd5 {[%clk 0:02:58]}  exd5 {[%clk 0:02:59]} 5. Nf3 {[%clk 0:02:58]}  c6 {[%clk 0:02:59]} 6. Bf4 {[%clk 0:02:54]}  Bd6 {[%clk 0:02:58]} 7. Bg3 {[%clk 0:02:53]}  Ne7 {[%clk 0:02:55]} 8. e3 {[%clk 0:02:53]}  Bf5 {[%clk 0:02:54]} 9. Bd3 {[%clk 0:02:49]}  Bxg3 {[%clk 0:02:35]} 10. hxg3 {[%clk 0:02:48]}  Nd7 {[%clk 0:02:33]} 11. b4 {[%clk 0:02:31]}  Nf6 {[%clk 0:02:12]} 12. O-O {[%clk 0:02:19]}  Qd6 {[%clk 0:02:08]} 13. Na4 {[%clk 0:01:27]}  Bxd3 {[%clk 0:01:53]} 14. Qxd3 {[%clk 0:01:26]}  Qxb4 {[%clk 0:01:45]} 15. Nc5 {[%clk 0:01:22]}  b5 {[%clk 0:01:31]} 16. Ne5 {[%clk 0:01:16]}  Qa5 {[%clk 0:01:03]} 17. a4 {[%clk 0:01:12]}  b4 {[%clk 0:01:02]} 18. g4 {[%clk 0:01:02]}  h6 {[%clk 0:00:41]} 19. f4 {[%clk 0:01:02]}  Qb6 {[%clk 0:00:25]} 20. g5 {[%clk 0:00:57]}  Ne4 {[%clk 0:00:22]} 21. Nxe4 {[%clk 0:00:52]}  dxe4 {[%clk 0:00:23]} 22. Qxe4 {[%clk 0:00:53]}  a5 {[%clk 0:00:23]} 23. g6 {[%clk 0:00:41]}  fxg6 {[%clk 0:00:20]} 24. Nxg6 {[%clk 0:00:40]}  Kf7 {[%clk 0:00:17]} 25. f5 {[%clk 0:00:32]}  Nxg6 {[%clk 0:00:06]} 26. Qe6+ {[%clk 0:00:30]}  Kf8 {[%clk 0:00:05]} 27. fxg6# {[%clk 0:00:31]} 1-0


[Site "https://www.chess.com"]

[Event "Titled Tuesday Blitz October 5 2021"]
[White "Babazada, Khazar"]
[Black "Petesch, Gabriel"]
[WhiteFideId "13413554"]
[BlackFideId "2032465"]
[WhiteElo "2302"]
[BlackElo "2374"]
[Result "0-1"]
[Round "03"]
[TimeControl "180+1"]
[Date "2021.10.05"]
[WhiteClock "0:00:07"]
[BlackClock "0:00:04"]

1. e4 {[%clk 0:03:00]}  c6 {[%clk 0:02:57]} 2. d4 {[%clk 0:03:00]}  d5 {[%clk 0:02:56]} 3. Nc3 {[%clk 0:03:01]}  dxe4 {[%clk 0:02:54]} 4. Nxe4 {[%clk 0:03:02]}  Nf6 {[%clk 0:02:52]} 5. Nxf6+ {[%clk 0:03:02]}  exf6 {[%clk 0:02:51]} 6. c3 {[%clk 0:03:03]}  Bd6 {[%clk 0:02:51]} 7. Bd3 {[%clk 0:03:04]}  c5 {[%clk 0:02:47]} 8. Ne2 {[%clk 0:03:05]}  cxd4 {[%clk 0:02:47]} 9. Nxd4 {[%clk 0:03:01]}  O-O {[%clk 0:02:42]} 10. O-O {[%clk 0:03:01]}  Nc6 {[%clk 0:02:39]} 11. Nxc6 {[%clk 0:02:59]}  bxc6 {[%clk 0:02:40]} 12. Qf3 {[%clk 0:02:59]}  Qc7 {[%clk 0:02:39]} 13. h3 {[%clk 0:02:55]}  Rb8 {[%clk 0:02:38]} 14. Rd1 {[%clk 0:02:50]}  Bh2+ {[%clk 0:02:26]} 15. Kf1 {[%clk 0:02:43]}  Be5 {[%clk 0:02:27]} 16. b3 {[%clk 0:02:39]}  Be6 {[%clk 0:02:12]} 17. Kg1 {[%clk 0:02:27]}  Bh2+ {[%clk 0:02:11]} 18. Kh1 {[%clk 0:02:25]}  Be5 {[%clk 0:02:12]} 19. Be3 {[%clk 0:02:10]}  Rfd8 {[%clk 0:02:08]} 20. Rac1 {[%clk 0:02:09]}  Rd7 {[%clk 0:02:00]} 21. c4 {[%clk 0:01:56]}  Rbd8 {[%clk 0:01:39]} 22. Bc2 {[%clk 0:01:56]}  a5 {[%clk 0:01:19]} 23. Rxd7 {[%clk 0:01:48]}  Rxd7 {[%clk 0:01:18]} 24. Rd1 {[%clk 0:01:48]}  g6 {[%clk 0:00:58]} 25. Qe2 {[%clk 0:01:35]}  Kg7 {[%clk 0:00:54]} 26. Rd2 {[%clk 0:01:34]}  Rxd2 {[%clk 0:00:40]} 27. Qxd2 {[%clk 0:01:35]}  h5 {[%clk 0:00:30]} 28. Bc5 {[%clk 0:01:09]}  Bc8 {[%clk 0:00:26]} 29. Be4 {[%clk 0:01:06]}  Qd7 {[%clk 0:00:16]} 30. Qe1 {[%clk 0:00:44]}  Bc7 {[%clk 0:00:07]} 31. Bf3 {[%clk 0:00:44]}  Qf5 {[%clk 0:00:06]} 32. Ba3 {[%clk 0:00:40]}  Qf4 {[%clk 0:00:06]} 33. Kg1 {[%clk 0:00:38]}  Bf5 {[%clk 0:00:05]} 34. Qe8 {[%clk 0:00:29]}  Qh2+ {[%clk 0:00:03]} 35. Kf1 {[%clk 0:00:27]}  Bd3+ {[%clk 0:00:02]} 36. Ke1 {[%clk 0:00:25]}  Bd6 {[%clk 0:00:03]} 37. Bxd6 {[%clk 0:00:22]}  Qxd6 {[%clk 0:00:04]} 38. Qe3 {[%clk 0:00:20]}  Bb1 {[%clk 0:00:02]} 39. Qd2 {[%clk 0:00:19]}  Qe5+ {[%clk 0:00:02]} 40. Be2 {[%clk 0:00:15]}  Qa1 {[%clk 0:00:03]} 41. f3 {[%clk 0:00:10]}  Bxa2+ {[%clk 0:00:03]} 42. Qd1 {[%clk 0:00:09]}  Qb2 {[%clk 0:00:03]} 43. Kf2 {[%clk 0:00:08]}  Bxb3 {[%clk 0:00:04]} 44. Qd3 {[%clk 0:00:07]}  a4 {[%clk 0:00:04]} 0-1


[Site "https://www.chess.com"]

[Event "Titled Tuesday Blitz October 5 2021"]
[White "Baches Garcia, Guillermo"]
[Black "Madaminov, Mukhiddin"]
[WhiteFideId "2209764"]
[BlackFideId "14210703"]
[WhiteElo "2497"]
[BlackElo "1855"]
[Result "0-1"]
[Round "03"]
[TimeControl "180+1"]
[Date "2021.10.05"]
[WhiteClock "0:00:12"]
[BlackClock "0:00:08"]

1. e4 {[%clk 0:03:00]}  e5 {[%clk 0:03:00]} 2. Nf3 {[%clk 0:03:00]}  Nc6 {[%clk 0:03:01]} 3. Nc3 {[%clk 0:03:01]}  Nf6 {[%clk 0:03:00]} 4. d4 {[%clk 0:03:02]}  exd4 {[%clk 0:03:01]} 5. Nxd4 {[%clk 0:03:02]}  Bb4 {[%clk 0:03:02]} 6. Nxc6 {[%clk 0:03:02]}  bxc6 {[%clk 0:03:03]} 7. Bd3 {[%clk 0:03:03]}  d5 {[%clk 0:03:03]} 8. Bd2 {[%clk 0:03:03]}  O-O {[%clk 0:03:03]} 9. O-O {[%clk 0:03:03]}  Re8 {[%clk 0:03:03]} 10. Nxd5 {[%clk 0:03:02]}  Nxd5 {[%clk 0:02:33]} 11. exd5 {[%clk 0:03:01]}  Bxd2 {[%clk 0:02:33]} 12. Qxd2 {[%clk 0:03:01]}  cxd5 {[%clk 0:02:33]} 13. b4 {[%clk 0:03:02]}  Bb7 {[%clk 0:02:28]} 14. Qf4 {[%clk 0:02:55]}  Qe7 {[%clk 0:02:22]} 15. Qd4 {[%clk 0:02:44]}  a5 {[%clk 0:02:12]} 16. b5 {[%clk 0:02:30]}  Kf8 {[%clk 0:01:55]} 17. Bxh7 {[%clk 0:02:17]}  Qb4 {[%clk 0:01:42]} 18. Qxb4+ {[%clk 0:02:08]}  axb4 {[%clk 0:01:43]} 19. Bd3 {[%clk 0:02:07]}  Ra4 {[%clk 0:01:41]} 20. Rfb1 {[%clk 0:02:02]}  Ke7 {[%clk 0:01:26]} 21. Re1+ {[%clk 0:01:47]}  Kd8 {[%clk 0:01:26]} 22. Rxe8+ {[%clk 0:01:47]}  Kxe8 {[%clk 0:01:27]} 23. Kf1 {[%clk 0:01:40]}  Ke7 {[%clk 0:01:24]} 24. f3 {[%clk 0:01:34]}  Kd6 {[%clk 0:01:23]} 25. Ke2 {[%clk 0:01:33]}  Kc5 {[%clk 0:01:19]} 26. Kd2 {[%clk 0:01:32]}  Kd4 {[%clk 0:00:45]} 27. Rb1 {[%clk 0:01:18]}  Bc8 {[%clk 0:00:42]} 28. h4 {[%clk 0:01:11]}  Kc5 {[%clk 0:00:40]} 29. Rb2 {[%clk 0:00:54]}  d4 {[%clk 0:00:35]} 30. h5 {[%clk 0:00:48]}  Be6 {[%clk 0:00:35]} 31. g4 {[%clk 0:00:44]}  f6 {[%clk 0:00:35]} 32. Bg6 {[%clk 0:00:24]}  Kxb5 {[%clk 0:00:21]} 33. Be8+ {[%clk 0:00:23]}  c6 {[%clk 0:00:22]} 34. Kd3 {[%clk 0:00:21]}  Kc5 {[%clk 0:00:20]} 35. Ke4 {[%clk 0:00:20]}  Ra3 {[%clk 0:00:20]} 36. Kf4 {[%clk 0:00:18]}  Bd5 {[%clk 0:00:20]} 37. g5 {[%clk 0:00:16]}  Rxf3+ {[%clk 0:00:19]} 38. Kg4 {[%clk 0:00:16]}  fxg5 {[%clk 0:00:17]} 39. Kxg5 {[%clk 0:00:16]}  Rg3+ {[%clk 0:00:17]} 40. Kf5 {[%clk 0:00:16]}  Rg1 {[%clk 0:00:17]} 41. Bg6 {[%clk 0:00:14]}  Ra1 {[%clk 0:00:12]} 42. Ke5 {[%clk 0:00:14]}  Re1+ {[%clk 0:00:11]} 43. Kf4 {[%clk 0:00:13]}  Rh1 {[%clk 0:00:09]} 44. Kg5 {[%clk 0:00:13]}  Bf3 {[%clk 0:00:09]} 45. Rb3 {[%clk 0:00:12]}  Bd5 {[%clk 0:00:08]} 46. Rg3 {[%clk 0:00:11]}  Bxa2 {[%clk 0:00:08]} 47. Be8 {[%clk 0:00:11]}  Bb1 {[%clk 0:00:05]} 48. Rg2 {[%clk 0:00:11]}  Rc1 {[%clk 0:00:05]} 49. Kg6 {[%clk 0:00:10]}  Rxc2 {[%clk 0:00:05]} 50. Rxc2+ {[%clk 0:00:10]}  Bxc2+ {[%clk 0:00:06]} 51. Kxg7 {[%clk 0:00:10]}  b3 {[%clk 0:00:07]} 52. Bg6 {[%clk 0:00:11]}  Bxg6 {[%clk 0:00:07]} 53. Kxg6 {[%clk 0:00:11]}  b2 {[%clk 0:00:07]} 54. h6 {[%clk 0:00:12]}  b1=Q+ {[%clk 0:00:08]} 0-1


[Site "https://www.chess.com"]

[Event "Titled Tuesday Blitz October 5 2021"]
[White "Baskin, Robert"]
[Black "Dzhaparov, Medet"]
[WhiteFideId "24662402"]
[BlackFideId "13803689"]
[WhiteElo "2521"]
[BlackElo "1702"]
[Result "0-1"]
[Round "03"]
[TimeControl "180+1"]
[Date "2021.10.05"]
[WhiteClock "0:00:07"]
[BlackClock "0:00:04"]

1. e4 {[%clk 0:03:00]}  e5 {[%clk 0:02:59]} 2. Nf3 {[%clk 0:03:00]}  Nc6 {[%clk 0:02:59]} 3. d4 {[%clk 0:02:54]}  exd4 {[%clk 0:02:59]} 4. Bc4 {[%clk 0:02:54]}  Bc5 {[%clk 0:02:58]} 5. Ng5 {[%clk 0:02:54]}  Nh6 {[%clk 0:02:58]} 6. Nxf7 {[%clk 0:02:52]}  Nxf7 {[%clk 0:02:58]} 7. Bxf7+ {[%clk 0:02:52]}  Kxf7 {[%clk 0:02:58]} 8. Qh5+ {[%clk 0:02:52]}  g6 {[%clk 0:02:59]} 9. Qxc5 {[%clk 0:02:52]}  d5 {[%clk 0:02:58]} 10. O-O {[%clk 0:02:51]}  dxe4 {[%clk 0:02:58]} 11. c3 {[%clk 0:02:27]}  Re8 {[%clk 0:02:39]} 12. cxd4 {[%clk 0:02:26]}  Qxd4 {[%clk 0:02:37]} 13. Qg5 {[%clk 0:02:23]}  Qe5 {[%clk 0:02:02]} 14. Qh4 {[%clk 0:02:16]}  Kg8 {[%clk 0:01:59]} 15. Nc3 {[%clk 0:02:11]}  Bf5 {[%clk 0:01:34]} 16. Bf4 {[%clk 0:02:04]}  Qe6 {[%clk 0:01:33]} 17. Rad1 {[%clk 0:01:55]}  Rad8 {[%clk 0:01:30]} 18. Bxc7 {[%clk 0:01:53]}  Rxd1 {[%clk 0:01:28]} 19. Rxd1 {[%clk 0:01:52]}  e3 {[%clk 0:01:27]} 20. fxe3 {[%clk 0:01:36]}  Qxe3+ {[%clk 0:01:26]} 21. Kh1 {[%clk 0:01:36]}  Qe7 {[%clk 0:00:46]} 22. Qc4+ {[%clk 0:01:02]}  Be6 {[%clk 0:00:46]} 23. Nd5 {[%clk 0:00:53]}  Qf7 {[%clk 0:00:29]} 24. Bg3 {[%clk 0:00:53]}  Rd8 {[%clk 0:00:27]} 25. Rf1 {[%clk 0:00:27]}  Bxd5 {[%clk 0:00:27]} 26. Qe2 {[%clk 0:00:26]}  Qe7 {[%clk 0:00:20]} 27. Qf2 {[%clk 0:00:26]}  Rf8 {[%clk 0:00:19]} 28. Qg1 {[%clk 0:00:23]}  Rxf1 {[%clk 0:00:17]} 29. Qxf1 {[%clk 0:00:23]}  Bxa2 {[%clk 0:00:16]} 30. h3 {[%clk 0:00:23]}  Bd5 {[%clk 0:00:15]} 31. Qb5 {[%clk 0:00:22]}  Qe4 {[%clk 0:00:14]} 32. Qf1 {[%clk 0:00:22]}  Nd4 {[%clk 0:00:12]} 33. Bd6 {[%clk 0:00:22]}  Nf5 {[%clk 0:00:12]} 34. Bc5 {[%clk 0:00:22]}  b6 {[%clk 0:00:12]} 35. Bf2 {[%clk 0:00:22]}  a5 {[%clk 0:00:09]} 36. Kh2 {[%clk 0:00:21]}  a4 {[%clk 0:00:09]} 37. g4 {[%clk 0:00:10]}  Qf4+ {[%clk 0:00:08]} 38. Kg1 {[%clk 0:00:10]}  Ne3 {[%clk 0:00:05]} 39. Bxe3 {[%clk 0:00:07]}  Qg3+ {[%clk 0:00:04]} 0-1


[Site "https://www.chess.com"]

[Event "Titled Tuesday Blitz October 5 2021"]
[White "Begmuratov, Khumoyun"]
[Black "Rodchenkov, Vitaly"]
[WhiteFideId "14210207"]
[BlackFideId "4152964"]
[WhiteElo "1948"]
[BlackElo "2337"]
[Result "1-0"]
[Round "03"]
[TimeControl "180+1"]
[Date "2021.10.05"]
[WhiteClock "0:00:05"]
[BlackClock "0:00:09"]

1. e4 {[%clk 0:03:00]}  c5 {[%clk 0:02:15]} 2. Nf3 {[%clk 0:02:58]}  d6 {[%clk 0:02:16]} 3. d4 {[%clk 0:02:57]}  cxd4 {[%clk 0:02:16]} 4. Nxd4 {[%clk 0:02:57]}  Nf6 {[%clk 0:02:17]} 5. Nc3 {[%clk 0:02:58]}  a6 {[%clk 0:02:17]} 6. Be2 {[%clk 0:02:57]}  e5 {[%clk 0:02:16]} 7. Nf3 {[%clk 0:02:56]}  Be7 {[%clk 0:02:16]} 8. O-O {[%clk 0:02:55]}  h6 {[%clk 0:02:15]} 9. Re1 {[%clk 0:02:55]}  Be6 {[%clk 0:02:14]} 10. Nd2 {[%clk 0:02:55]}  Qc7 {[%clk 0:02:12]} 11. Nf1 {[%clk 0:02:55]}  Nbd7 {[%clk 0:02:11]} 12. Ne3 {[%clk 0:02:55]}  O-O {[%clk 0:02:11]} 13. Ncd5 {[%clk 0:02:45]}  Bxd5 {[%clk 0:02:10]} 14. exd5 {[%clk 0:02:45]}  Rfe8 {[%clk 0:02:09]} 15. c4 {[%clk 0:02:44]}  Bf8 {[%clk 0:02:08]} 16. b3 {[%clk 0:02:41]}  g6 {[%clk 0:02:08]} 17. Bb2 {[%clk 0:02:37]}  h5 {[%clk 0:02:07]} 18. Rc1 {[%clk 0:02:38]}  Bh6 {[%clk 0:02:07]} 19. Rc2 {[%clk 0:02:35]}  Rac8 {[%clk 0:02:06]} 20. Bf1 {[%clk 0:02:25]}  Qa5 {[%clk 0:02:02]} 21. Bc3 {[%clk 0:02:24]}  Qb6 {[%clk 0:02:00]} 22. Qf3 {[%clk 0:02:20]}  Bg7 {[%clk 0:01:57]} 23. Qh3 {[%clk 0:02:15]}  Nc5 {[%clk 0:01:52]} 24. Bd2 {[%clk 0:02:01]}  Nfe4 {[%clk 0:01:49]} 25. Bc1 {[%clk 0:02:00]}  f5 {[%clk 0:01:48]} 26. f3 {[%clk 0:01:50]}  Nf6 {[%clk 0:01:47]} 27. Kh1 {[%clk 0:01:46]}  e4 {[%clk 0:01:45]} 28. f4 {[%clk 0:01:38]}  Ng4 {[%clk 0:01:43]} 29. Nxg4 {[%clk 0:01:24]}  hxg4 {[%clk 0:01:43]} 30. Qe3 {[%clk 0:01:24]}  Qa5 {[%clk 0:01:42]} 31. Bd2 {[%clk 0:01:16]}  Qd8 {[%clk 0:01:40]} 32. b4 {[%clk 0:01:13]}  Nd7 {[%clk 0:01:37]} 33. Rec1 {[%clk 0:01:12]}  b6 {[%clk 0:01:27]} 34. g3 {[%clk 0:01:11]}  Qe7 {[%clk 0:01:24]} 35. a4 {[%clk 0:01:00]}  Kf7 {[%clk 0:01:22]} 36. c5 {[%clk 0:00:58]}  bxc5 {[%clk 0:01:21]} 37. Bxa6 {[%clk 0:00:58]}  Ra8 {[%clk 0:01:21]} 38. b5 {[%clk 0:00:58]}  Rh8 {[%clk 0:01:17]} 39. a5 {[%clk 0:00:55]}  Nf6 {[%clk 0:01:06]} 40. Qb3 {[%clk 0:00:49]}  Rhb8 {[%clk 0:01:00]} 41. Qa2 {[%clk 0:00:44]}  Kf8 {[%clk 0:00:59]} 42. Be3 {[%clk 0:00:43]}  Qf7 {[%clk 0:00:59]} 43. Rd1 {[%clk 0:00:40]}  Ra7 {[%clk 0:00:53]} 44. Qc4 {[%clk 0:00:40]}  Rba8 {[%clk 0:00:51]} 45. Kg2 {[%clk 0:00:36]}  Kg8 {[%clk 0:00:49]} 46. Kh1 {[%clk 0:00:37]}  Kh7 {[%clk 0:00:48]} 47. Rcd2 {[%clk 0:00:36]}  Nd7 {[%clk 0:00:45]} 48. Rb1 {[%clk 0:00:36]}  Nb8 {[%clk 0:00:43]} 49. Bc8 {[%clk 0:00:27]}  Rxa5 {[%clk 0:00:40]} 50. b6 {[%clk 0:00:27]}  Ra1 {[%clk 0:00:36]} 51. Rdd1 {[%clk 0:00:25]}  R8a4 {[%clk 0:00:31]} 52. Qc2 {[%clk 0:00:19]}  Rxb1 {[%clk 0:00:29]} 53. Rxb1 {[%clk 0:00:17]}  Ra3 {[%clk 0:00:28]} 54. Qd2 {[%clk 0:00:16]}  Qf6 {[%clk 0:00:23]} 55. b7 {[%clk 0:00:16]}  Qc3 {[%clk 0:00:20]} 56. Qxc3 {[%clk 0:00:16]}  Bxc3 {[%clk 0:00:20]} 57. Bc1 {[%clk 0:00:15]}  Ra7 {[%clk 0:00:19]} 58. Rb3 {[%clk 0:00:14]}  Bd4 {[%clk 0:00:19]} 59. Rb1 {[%clk 0:00:14]}  Kg7 {[%clk 0:00:19]} 60. Bd2 {[%clk 0:00:14]}  Kf7 {[%clk 0:00:19]} 61. Be1 {[%clk 0:00:10]}  Ke7 {[%clk 0:00:18]} 62. Rd1 {[%clk 0:00:09]}  Kd8 {[%clk 0:00:17]} 63. h3 {[%clk 0:00:09]}  gxh3 {[%clk 0:00:17]} 64. Kh2 {[%clk 0:00:09]}  Ra2+ {[%clk 0:00:15]} 65. Kxh3 {[%clk 0:00:10]}  Kc7 {[%clk 0:00:15]} 66. g4 {[%clk 0:00:09]}  Ra3+ {[%clk 0:00:12]} 67. Kg2 {[%clk 0:00:06]}  e3 {[%clk 0:00:12]} 68. gxf5 {[%clk 0:00:06]}  gxf5 {[%clk 0:00:12]} 69. Kf3 {[%clk 0:00:06]}  Rb3 {[%clk 0:00:10]} 70. Rc1 {[%clk 0:00:05]}  Kd8 {[%clk 0:00:10]} 71. Bh4+ {[%clk 0:00:05]}  Ke8 {[%clk 0:00:10]} 72. Rf1 {[%clk 0:00:04]}  Rb2 {[%clk 0:00:09]} 73. Rg1 {[%clk 0:00:04]}  e2 {[%clk 0:00:09]} 74. Rg8+ {[%clk 0:00:04]}  Kf7 {[%clk 0:00:09]} 75. Be6# {[%clk 0:00:05]} 1-0


[Site "https://www.chess.com"]